fUSD/lending_fUSD_20241125
["ID","MTS","AMOUNT","RATE_DAILY","PERIOD"]
[343234882,1732515849012,-151.0,0.0004,14]
[343234883,1732515849035,-151.0,0.0004,14]
[343234884,1732515849056,-157.398425,0.0004,14]
[343234885,1732515849078,-1159.68294,0.0004,14]
[343234886,1732515849099,-1159.68294,0.0004,14]
[343234887,1732515849121,-10000.0,0.0004,14]
[343234888,1732515849147,-10000.0,0.0004,14]
[343234889,1732515849169,-151.0,0.0004,14]
[343234890,1732515849191,-10000.0,0.0004,14]
[343234891,1732515849221,-151.0,0.0004,14]
[343234892,1732515849243,-10000.0,0.0004,14]
[343234893,1732515849271,-10000.0,0.0004,14]
[343234894,1732515849293,-313.031189,0.0004,14]
[343234895,1732515849314,-313.031189,0.0004,14]
[343234896,1732515849335,-1011.843025,0.0004,14]
[343234897,1732515849355,-1011.843025,0.0004,14]
[343234898,1732515857687,1500.0,0.00039535,120]
[343234899,1732515863772,5329.47,0.00039418,63]
[343234900,1732515889078,203.0,0.0003999,30]
[343234901,1732515908816,131244.29078852,0.00013,2]
[343234902,1732515915381,220.05115485,0.0004,30]
[343234903,1732515915486,10170.81654447,0.000399,15]
[343234911,1732515963362,158.0,0.00038999,60]
[343234912,1732515987217,22324.99757168,0.000399,15]
[343234913,1732515987244,98997.51701202,0.000399,15]
[343234915,1732516030763,642.53,0.00039315,30]
[343234916,1732516041032,359.95298798,0.00039,120]
[343234917,1732516041053,140.04701202,0.00039,120]
[343234918,1732516041380,705.8531007,0.00039,120]
[343234919,1732516043373,5258.71,0.00039158,30]
[343234920,1732516045813,300.0,0.000392,14]
[343234921,1732516047911,700.0,0.000393,14]
[343234922,1732516050051,1100.0,0.000394,14]
[343234923,1732516052206,1500.0,0.000395,14]
[343234924,1732516054598,1800.0,0.000396,14]
[343234925,1732516056533,300.0,0.000397,14]
[343234926,1732516058487,300.0,0.000398,14]
[343234927,1732516060588,300.0,0.000399,14]
[343234928,1732516063904,1784.59690028,0.0003121,2]
[343234929,1732516081224,378.68,0.00038822,120]
[343234930,1732516097470,663.94490061,0.0002,2]
[343234932,1732516110208,1011.28156591,0.0003,2]
[343234933,1732516117331,299.99,0.00039155,120]
[343234935,1732516118943,150.0,0.000352,5]
[343234948,1732516203574,19194.63620207,0.0004,14]
[343234965,1732516232176,-1853.64307702,0.0003759,2]
[343234970,1732516234374,-533.91023075,0.0003759,2]
[343234971,1732516234384,-179.68252858,0.00038544,2]
[343234972,1732516234394,-435.46,0.00038629,2]
[343234973,1732516234404,-413.52565691,0.00038635,2]
[343234974,1732516234414,-435.46,0.00038639,2]
[343234975,1732516234424,-435.46,0.00038649,2]
[343234976,1732516234434,-435.46,0.00038659,2]
[343234977,1732516234445,-435.46,0.00038669,2]
[343234978,1732516234455,-435.46,0.0003868,2]
[343234979,1732516234465,-435.46,0.0003869,2]
[343234980,1732516234476,-250.0,0.00038692,2]
[343234981,1732516234486,-435.46,0.000387,2]
[343234982,1732516234497,-435.46,0.0003871,2]
[343234983,1732516234508,-435.46,0.0003872,2]
[343234984,1732516234521,-435.46,0.0003873,2]
[343234985,1732516234531,-435.46,0.00038741,2]
[343234986,1732516234542,-435.46,0.00038751,2]
[343234987,1732516234552,-435.46,0.00038761,2]
[343234988,1732516234562,-435.46,0.00038771,2]
[343234989,1732516234571,-435.46,0.00038781,2]
[343234990,1732516234581,-500.0,0.00038788,2]
[343234991,1732516234591,-166.64,0.00038789,2]
[343234992,1732516234600,-435.46,0.00038791,2]
[343234993,1732516234610,-435.46,0.00038802,2]
[343234994,1732516234620,-435.46,0.00038812,2]
[343234995,1732516234629,-435.46,0.00038822,2]
[343234996,1732516234638,-400.0,0.00038867,5]
[343234997,1732516234648,-289.0,0.00038867,5]
[343234998,1732516234658,-23900.0,0.00038868,2]
[343234999,1732516234667,-278.83,0.00038936,2]
[343235000,1732516234677,-1358.02,0.00038972,2]
[343235001,1732516234686,-150.0,0.00038972,2]
[343235002,1732516234696,-6659.1359487,0.00039,3]
[343235003,1732516234705,-3000.0,0.00039,2]
[343235004,1732516234714,-200.0,0.00039056,2]
[343235005,1732516234724,-1679.51,0.00039056,2]
[343235006,1732516234734,-543.03,0.00039091,2]
[343235007,1732516234744,-413.52565691,0.00039091,2]
[343235008,1732516234753,-211.36,0.00039155,2]
[343235009,1732516234766,-179.68252857,0.00039215,2]
[343235010,1732516234774,-750.0,0.00039298,4]
[343235011,1732516234784,-9926.47,0.00039299,2]
[343235012,1732516234794,-3503.82,0.00039315,2]
[343235013,1732516234804,-150.99,0.00039315,2]
[343235014,1732516234813,-413.52565691,0.00039372,2]
[343235015,1732516234823,-2730.49,0.00039412,2]
[343235016,1732516234832,-413.52565691,0.00039496,2]
[343235017,1732516234841,-500.0,0.00039535,2]
[343235018,1732516234850,-517.17259,0.000398,2]
[343235019,1732516234860,-574.289,0.000398,2]
[343235020,1732516234869,-574.289,0.000398,2]
[343235021,1732516234879,-574.289,0.000398,2]
[343235022,1732516234888,-574.289,0.000398,2]
[343235023,1732516234897,-574.289,0.000398,2]
[343235024,1732516234906,-574.289,0.000398,2]
[343235025,1732516234916,-574.289,0.000398,2]
[343235026,1732516234926,-574.289,0.000398,2]
[343235027,1732516234935,-574.289,0.000398,2]
[343235028,1732516234944,-574.289,0.000398,2]
[343235029,1732516234953,-413.52565693,0.00039811,2]
[343235030,1732516234963,-5800.0,0.00039824,7]
[343235031,1732516234973,-5800.0,0.00039832,7]
[343235032,1732516234983,-5800.0,0.00039841,7]
[343235033,1732516234992,-5800.0,0.00039849,7]
[343235034,1732516235002,-5800.0,0.00039857,7]
[343235035,1732516235012,-5800.0,0.00039866,7]
[343235036,1732516235022,-5800.0,0.00039875,7]
[343235037,1732516235031,-5800.0,0.00039883,7]
[343235038,1732516235040,-5800.0,0.00039892,7]
[343235039,1732516235048,-355.24604314,0.000399,2]
[343235040,1732516235057,-5800.0,0.000399,7]
[343235041,1732516235066,-152.40594866,0.000399,2]
[343235042,1732516235074,-1439.205155,0.000399,2]
[343235043,1732516235082,-301.58640278,0.000399,2]
[343235044,1732516235090,-180.4170415,0.000399,2]
[343235045,1732516235098,-1232.29238398,0.000399,2]
[343235046,1732516235106,-14486.59968174,0.000399,2]
[343235047,1732516235114,-500.0,0.00039973,5]
[343235048,1732516235311,-500.0,0.00039973,2]
[343235049,1732516235322,-302.5,0.0003998,3]
[343235050,1732516235335,-37936.05908512,0.0003999,2]
[343235051,1732516235346,-13594.8278145,0.00039998,2]
[343235052,1732516235356,-703.5118722,0.00039998,2]
[343235053,1732516235366,-7868.87965458,0.00039999,5]
[343235054,1732516235376,-14020702.03432624,0.0004,2]
[343235055,1732516235390,-1281003.23212024,0.0004,2]
[343235056,1732516235401,-250.0,0.0004,4]
[343235057,1732516235410,-250.0,0.0004,4]
[343235058,1732516235420,-250.0,0.0004,4]
[343235059,1732516235430,-250.0,0.0004,4]
[343235060,1732516235439,-250.0,0.0004,4]
[343235061,1732516235449,-250.0,0.0004,4]
[343235062,1732516235459,-250.0,0.0004,4]
[343235063,1732516235468,-250.0,0.0004,4]
[343235064,1732516235478,-250.0,0.0004,4]
[343235065,1732516235487,-250.0,0.0004,4]
[343235066,1732516235497,-250.0,0.0004,4]
[343235067,1732516235506,-250.0,0.0004,4]
[343235068,1732516235518,-250.0,0.0004,4]
[343235069,1732516235528,-250.0,0.0004,4]
[343235070,1732516235538,-250.0,0.0004,4]
[343235071,1732516235547,-250.0,0.0004,4]
[343235072,1732516235558,-250.0,0.0004,4]
[343235073,1732516235567,-250.0,0.0004,4]
[343235074,1732516235577,-250.0,0.0004,4]
[343235075,1732516235586,-250.0,0.0004,4]
[343235076,1732516235596,-250.0,0.0004,4]
[343235077,1732516235605,-250.0,0.0004,4]
[343235078,1732516235615,-250.0,0.0004,4]
[343235079,1732516235625,-250.0,0.0004,4]
[343235080,1732516235636,-250.0,0.0004,4]
[343235081,1732516235646,-366.8,0.0004,4]
[343235082,1732516235655,-22040.937,0.0004,2]
[343235083,1732516235665,-24741.086,0.0004,2]
[343235084,1732516235675,-2000.0,0.0004,7]
[343235085,1732516235684,-200.0,0.0004,7]
[343235086,1732516235694,-5000.0,0.0004,2]
[343235087,1732516235704,-4683.019305,0.0004,2]
[343235088,1732516235714,-1000.0,0.0004,2]
[343235089,1732516235723,-1983.0,0.0004002,3]
[343235090,1732516235732,-4306.8264528,0.00040025,2]
[343235091,1732516235742,-2641.2041175,0.00040025,2]
[343235092,1732516235752,-1826.7693733,0.00040053,2]
[343235093,1732516235763,-4389.8497493,0.00040053,2]
[343235094,1732516235772,-1447.3539364,0.0004008,2]
[343235095,1732516235782,-517.1726,0.0004011,3]
[343235096,1732516235793,-1413.76,0.00040136,7]
[343235097,1732516235802,-1413.76,0.00040273,7]
[343235098,1732516235812,-1122.82,0.00040295,2]
[343235099,1732516235822,-301.58640274,0.00040321,2]
[343235100,1732516235831,-200.0,0.000404,7]
[343235101,1732516235840,-1413.76,0.0004041,7]
[343235102,1732516235850,-326.91,0.0004041,2]
[343235103,1732516235859,-517.1726,0.0004043,4]
[343235104,1732516235869,-173.80701215,0.00040521,5]
[343235105,1732516235879,-421.77532685,0.00040521,5]
[343235106,1732516235889,-1000.0,0.00040521,2]
[343235107,1732516235898,-1413.76,0.00040547,7]
[343235108,1732516235908,-1413.76,0.00040684,7]
[343235109,1732516235917,-517.1726,0.0004074,5]
[343235110,1732516235927,-301.58640274,0.00040743,2]
[343235111,1732516235937,-12008.47,0.00040812,2]
[343235112,1732516235946,-1413.76,0.00040821,7]
[343235113,1732516235956,-1413.76,0.00040958,7]
[343235114,1732516235966,-500.0,0.00041,2]
[343235115,1732516235975,-162.23186728,0.00041025,5]
[343235116,1732516235984,-543.03,0.00041045,2]
[343235117,1732516235994,-517.1726,0.0004105,7]
[343235118,1732516236004,-1000.0,0.00041095,120]
[343235119,1732516236014,-1413.76,0.00041095,7]
[343235120,1732516236024,-150.4,0.00041096,2]
[343235121,1732516236033,-151.0,0.00041096,14]
[343235122,1732516236042,-248.0,0.00041096,2]
[343235123,1732516236052,-183.15,0.00041096,2]
[343235124,1732516236062,-331.48253162,0.00041096,31]
[343235125,1732516236071,-301.58640274,0.00041164,2]
[343235126,1732516236081,-1591.76,0.00041204,2]
[343235127,1732516236091,-1413.76,0.00041232,7]
[343235128,1732516236100,-185.92,0.00041241,2]
[343235129,1732516236110,-171.29,0.00041264,120]
[343235130,1732516236119,-517.1726,0.0004136,8]
[343235131,1732516236129,-1000.0,0.00041369,120]
[343235132,1732516236139,-1413.76,0.00041369,7]
[343235133,1732516236149,-1000.0,0.0004137,2]
[343235134,1732516236158,-165.57,0.00041492,2]
[343235135,1732516236168,-1413.76,0.00041506,7]
[343235136,1732516236178,-560.0,0.00041507,5]
[343235137,1732516236188,-1500.0,0.00041522,2]
[343235138,1732516236197,-301.58640274,0.00041586,2]
[343235139,1732516236208,-1000.0,0.00041643,120]
[343235140,1732516236218,-1413.76,0.00041643,7]
[343235141,1732516236228,-754.882,0.00041716,62]
[343235142,1732516236237,-178.35,0.00041716,62]
[343235143,1732516236250,-1413.76,0.0004178,7]
[343235144,1732516236262,-1000.0,0.00041917,120]
[343235145,1732516236271,-1413.76,0.00041917,7]
[343235146,1732516236281,-176.52,0.00041931,120]
[343235147,1732516236292,-500.0,0.00042,30]
[343235148,1732516236302,-500.0,0.00042,30]
[343235149,1732516236311,-500.0,0.00042,30]
[343235150,1732516236322,-500.0,0.00042,30]
[343235151,1732516236333,-500.0,0.00042,30]
[343235152,1732516236343,-500.0,0.00042,30]
[343235153,1732516236352,-500.0,0.00042,30]
[343235154,1732516236362,-500.0,0.00042,30]
[343235155,1732516236371,-500.0,0.00042,30]
[343235156,1732516236381,-500.0,0.00042,30]
[343235157,1732516236390,-500.0,0.00042,30]
[343235158,1732516236400,-500.0,0.00042,30]
[343235159,1732516236410,-500.0,0.00042,30]
[343235160,1732516236420,-1300.0,0.00042,30]
[343235161,1732516236430,-500.0,0.00042,30]
[343235162,1732516236439,-1300.0,0.00042,30]
[343235163,1732516236449,-500.0,0.00042,30]
[343235164,1732516236463,-1300.0,0.00042,30]
[343235165,1732516236473,-1300.0,0.00042,30]
[343235166,1732516236482,-1300.0,0.00042,30]
[343235167,1732516236492,-1300.0,0.00042,30]
[343235168,1732516236501,-1300.0,0.00042,30]
[343235169,1732516236512,-1300.0,0.00042,30]
[343235170,1732516236522,-1300.0,0.00042,30]
[343235171,1732516236531,-500.0,0.00042,30]
[343235172,1732516236540,-500.0,0.00042,30]
[343235173,1732516236549,-796.20097111,0.00042,2]
[343235174,1732516236559,-19438.06989232,0.00042,30]
[343235175,1732516236568,-500.0,0.00042,2]
[343235176,1732516236578,-502.80756077,0.00042,2]
[343235177,1732516236587,-500.0,0.00042,2]
[343235178,1732516236596,-500.0,0.00042,2]
[343235179,1732516236606,-500.0,0.00042,2]
[343235180,1732516236616,-500.0,0.00042,2]
[343235181,1732516236625,-500.0,0.00042,2]
[343235182,1732516236634,-503.31380069,0.00042,2]
[343235183,1732516236643,-503.71335257,0.00042,2]
[343235184,1732516236653,-524.24096193,0.00042,2]
[343235185,1732516236662,-550.35908084,0.00042,2]
[343235186,1732516236672,-500.0,0.00042,2]
[343235187,1732516236681,-500.0,0.00042,2]
[343235188,1732516236691,-520.63069936,0.00042,2]
[343235189,1732516236700,-500.0,0.00042,2]
[343235190,1732516236710,-500.0,0.00042,2]
[343235191,1732516236719,-1300.0,0.00042,2]
[343235192,1732516236728,-500.0,0.00042,2]
[343235193,1732516236738,-500.0,0.00042,2]
[343235194,1732516236747,-1300.0,0.00042,2]
[343235195,1732516236758,-526.22481885,0.00042,2]
[343235196,1732516236768,-1300.0,0.00042,2]
[343235197,1732516236777,-1300.0,0.00042,2]
[343235198,1732516236787,-500.0,0.00042,2]
[343235199,1732516236796,-500.0,0.00042,2]
[343235200,1732516236807,-1300.0,0.00042,2]
[343235201,1732516236816,-500.0,0.00042,2]
[343235202,1732516236825,-1300.0,0.00042,2]
[343235203,1732516236835,-1300.0,0.00042,2]
[343235204,1732516236844,-1300.0,0.00042,2]
[343235205,1732516236854,-1300.0,0.00042,2]
[343235206,1732516236864,-1300.0,0.00042,2]
[343235207,1732516236875,-500.0,0.00042,2]
[343235208,1732516236885,-500.0,0.00042,2]
[343235209,1732516236894,-500.0,0.00042,2]
[343235210,1732516236904,-502.2292993,0.00042,2]
[343235211,1732516236914,-530.60365359,0.00042,2]
[343235212,1732516236923,-500.0,0.00042,2]
[343235213,1732516236933,-500.0,0.00042,2]
[343235214,1732516236943,-500.0,0.00042,2]
[343235215,1732516236952,-517.30474438,0.00042,2]
[343235216,1732516236962,-301.58640274,0.00042007,2]
[343235217,1732516236971,-429.94,0.00042009,2]
[343235218,1732516236981,-1413.76,0.00042054,7]
[343235219,1732516236991,-270.001901,0.00042092,14]
[343235220,1732516237000,-151.0,0.00042092,14]
[343235221,1732516237010,-263.000864,0.00042092,14]
[343235222,1732516237019,-313.031189,0.00042092,14]
[343235223,1732516237029,-313.031189,0.00042092,14]
[343235224,1732516237038,-1000.0,0.00042191,120]
[343235225,1732516237048,-1413.76,0.00042191,7]
[343235226,1732516237057,-180.4170415,0.00042229,2]
[343235227,1732516237067,-1232.29238397,0.00042229,2]
[343235228,1732516237076,-14486.59968172,0.00042229,2]
[343235229,1732516237085,-1413.76,0.00042328,7]
[343235230,1732516237095,-301.58640274,0.00042429,2]
[343235231,1732516237104,-1000.0,0.00042465,120]
[343235232,1732516237114,-1413.76,0.00042465,7]
[343235233,1732516237123,-1413.76,0.00042602,7]
[343235234,1732516237132,-1000.0,0.00042739,120]
[343235235,1732516237142,-1413.76,0.00042739,7]
[343235236,1732516237151,-1565.58187623,0.00042765,30]
[343235237,1732516237161,-182.84,0.00042782,2]
[343235238,1732516237171,-1515.44814314,0.0004282,2]
[343235239,1732516237181,-280.760941,0.0004282,14]
[343235240,1732516237191,-151.0,0.0004282,14]
[343235241,1732516237201,-280.760941,0.0004282,14]
[343235242,1732516237211,-151.0,0.0004282,14]
[343235243,1732516237221,-191.45684,0.0004282,14]
[343235244,1732516237231,-191.45684,0.0004282,14]
[343235245,1732516237241,-151.0,0.0004282,14]
[343235246,1732516237254,-151.0,0.0004282,14]
[343235247,1732516237267,-190.067853,0.0004282,14]
[343235248,1732516237277,-151.0,0.0004282,14]
[343235249,1732516237287,-151.0,0.0004282,14]
[343235250,1732516237297,-151.0,0.0004282,14]
[343235251,1732516237306,-151.0,0.0004282,14]
[343235252,1732516237316,-151.0,0.0004282,14]
[343235253,1732516237327,-151.0,0.0004282,14]
[343235254,1732516237337,-151.0,0.0004282,14]
[343235255,1732516237346,-151.0,0.0004282,14]
[343235256,1732516237356,-151.0,0.0004282,14]
[343235257,1732516237365,-301.58640274,0.0004285,2]
[343235258,1732516237376,-1413.76,0.00042876,7]
[343235259,1732516237385,-14821.46384354,0.000429,60]
[343235260,1732516237395,-543.03,0.00043,2]
[343235261,1732516237405,-550.0,0.00043,2]
[343235262,1732516237414,-7153.55547217,0.00043,120]
[343235263,1732516237424,-2298.85057187,0.00043,2]
[343235264,1732516237433,-276.07525142,0.00043,120]
[343235265,1732516237449,-16800.87963896,0.00043,120]
[343235266,1732516237459,-1018.16970999,0.00043013,120]
[343235267,1732516237468,-1413.76,0.00043013,7]
[343235268,1732516237478,-165.57,0.00043136,2]
[343235269,1732516237487,-1413.91536139,0.0004315,7]
[343235270,1732516237497,-1546.71966448,0.00043182,120]
[343235271,1732516237507,-301.58640274,0.00043272,2]
[343235272,1732516237519,-215.85380063,0.00043273,30]
[343235273,1732516237528,-1000.0,0.00043278,2]
[343235274,1732516237537,-658.16,0.0004338,120]
[343235275,1732516237547,-179.78,0.00043391,2]
[343235276,1732516237557,-1506.81922732,0.00043551,2]
[343235277,1732516237566,-1506.81922733,0.00043551,2]
[343235278,1732516237576,-179.78,0.00043607,2]
[343235280,1732516237585,-301.58640274,0.00043693,2]
[343235281,1732516237595,-25241.85433767,0.000437,120]
[343235282,1732516237604,-500.0,0.00043706,60]
[343235283,1732516237614,-600.0,0.00043706,60]
[343235284,1732516237623,-500.92533377,0.000438,7]
[343235285,1732516237633,-500.0,0.00043835,30]
[343235286,1732516237642,-602.98,0.00043835,30]
[343235287,1732516237652,-500.0,0.00043835,30]
[343235288,1732516237661,-500.0,0.00043835,30]
[343235289,1732516237670,-500.0,0.00043835,30]
[343235290,1732516237680,-500.0,0.00043835,30]
[343235291,1732516237689,-500.0,0.00043835,30]
[343235292,1732516237699,-542.16425781,0.00043835,30]
[343235293,1732516237708,-500.0,0.00043835,30]
[343235294,1732516237718,-500.0,0.00043835,30]
[343235295,1732516237727,-500.0,0.00043835,30]
[343235296,1732516237737,-500.0,0.00043835,30]
[343235297,1732516237747,-500.0,0.00043835,30]
[343235298,1732516237756,-500.0,0.00043835,30]
[343235299,1732516237768,-512.19733066,0.00043835,30]
[343235300,1732516237778,-500.0,0.00043835,30]
[343235301,1732516237788,-161.75,0.00043835,30]
[343235302,1732516237797,-241.12,0.00043835,30]
[343235303,1732516237807,-500.0,0.00043835,30]
[343235304,1732516237816,-500.0,0.00043835,30]
[343235305,1732516237826,-500.0,0.00043835,30]
[343235306,1732516237835,-1000.0,0.00043835,30]
[343235307,1732516237844,-500.0,0.00043835,30]
[343235308,1732516237853,-500.0,0.00043835,30]
[343235309,1732516237863,-549.20704941,0.00043835,30]
[343235310,1732516237872,-581.90939679,0.00043835,30]
[343235311,1732516237882,-513.22251095,0.00043835,30]
[343235312,1732516237891,-517.04925273,0.00043835,30]
[343235313,1732516237900,-500.0,0.00043835,30]
[343235314,1732516237910,-500.0,0.00043835,30]
[343235315,1732516237919,-500.0,0.00043835,30]
[343235316,1732516237929,-163.0701777,0.00043835,30]
[343235317,1732516237939,-500.0,0.00043835,30]
[343235318,1732516237948,-500.0,0.00043835,30]
[343235319,1732516237958,-500.0,0.00043835,30]
[343235320,1732516237967,-500.0,0.00043835,30]
[343235321,1732516237976,-382.53375895,0.00043835,30]
[343235322,1732516237986,-500.0,0.00043835,30]
[343235323,1732516237995,-500.0,0.00043835,30]
[343235324,1732516238005,-500.0,0.00043835,30]
[343235325,1732516238015,-500.0,0.00043835,30]
[343235326,1732516238024,-500.0,0.00043835,30]
[343235327,1732516238034,-500.0,0.00043835,30]
[343235328,1732516238043,-500.0,0.00043835,30]
[343235329,1732516238052,-515.60297506,0.00043835,30]
[343235330,1732516238062,-609.27012064,0.00043835,30]
[343235331,1732516238071,-514.02853795,0.00043835,30]
[343235332,1732516238080,-500.0,0.00043835,30]
[343235333,1732516238090,-516.56406965,0.00043835,30]
[343235334,1732516238099,-672.54,0.00043835,30]
[343235335,1732516238108,-500.0,0.00043835,30]
[343235336,1732516238118,-500.0,0.00043835,30]
[343235337,1732516238127,-513.95585081,0.00043835,30]
[343235338,1732516238136,-624.46359091,0.00043835,30]
[343235339,1732516238146,-500.0,0.00043835,30]
[343235340,1732516238156,-500.0,0.00043835,30]
[343235341,1732516238165,-500.0,0.00043835,30]
[343235342,1732516238175,-502.92770512,0.00043835,30]
[343235343,1732516238185,-500.0,0.00043835,30]
[343235344,1732516238194,-515.56906946,0.00043835,30]
[343235345,1732516238204,-500.0,0.00043835,30]
[343235346,1732516238213,-512.2394051,0.00043835,30]
[343235347,1732516238223,-500.0,0.00043835,30]
[343235348,1732516238232,-296.55211356,0.00043835,30]
[343235349,1732516238242,-543.60107593,0.00043835,30]
[343235350,1732516238255,-517.65342595,0.00043835,30]
[343235351,1732516238269,-528.0442371,0.00043835,30]
[343235352,1732516238280,-506.10265363,0.00043835,30]
[343235353,1732516238291,-504.58080668,0.00043835,30]
[343235354,1732516238301,-500.0,0.00043835,30]
[343235355,1732516238311,-500.0,0.00043835,30]
[343235356,1732516238320,-500.0,0.00043835,30]
[343235357,1732516238330,-196.14256495,0.00043835,30]
[343235358,1732516238340,-513.73576378,0.00043835,30]
[343235359,1732516238350,-500.0,0.00043835,30]
[343235360,1732516238359,-500.0,0.00043835,30]
[343235361,1732516238369,-500.0,0.00043835,30]
[343235362,1732516238379,-500.0,0.00043835,30]
[343235363,1732516238388,-500.0,0.00043835,30]
[343235364,1732516238398,-542.58194639,0.00043835,30]
[343235365,1732516238579,-500.0,0.00043835,30]
[343235366,1732516238589,-500.0,0.00043835,30]
[343235367,1732516238598,-507.01541517,0.00043835,30]
[343235369,1732516238607,-500.0,0.00043835,30]
[343235370,1732516238616,-506.65961638,0.00043835,30]
[343235371,1732516238625,-500.0,0.00043835,30]
[343235372,1732516238634,-500.0,0.00043835,30]
[343235373,1732516238643,-510.02758171,0.00043835,30]
[343235374,1732516238653,-500.0,0.00043835,30]
[343235375,1732516238662,-519.05998328,0.00043835,30]
[343235376,1732516238671,-525.28491253,0.00043835,30]
[343235377,1732516238680,-523.05278242,0.00043835,30]
[343235378,1732516238689,-2522.86,0.00043835,30]
[343235379,1732516238699,-347.75950774,0.00043835,30]
[343235380,1732516238708,-500.0,0.00043835,30]
[343235381,1732516238717,-1636.83,0.00043835,30]
[343235382,1732516238727,-696.6,0.00043835,30]
[343235383,1732516238737,-151.0,0.00043835,14]
[343235384,1732516238746,-151.0,0.00043835,14]
[343235385,1732516238756,-500.0,0.00043835,30]
[343235386,1732516238767,-500.0,0.00043835,30]
[343235387,1732516238777,-151.0,0.00043835,14]
[343235388,1732516238786,-151.0,0.00043835,14]
[343235389,1732516238796,-500.0,0.00043835,30]
[343235390,1732516238805,-500.0,0.00043835,30]
[343235391,1732516238814,-500.0,0.00043835,30]
[343235392,1732516238823,-500.0,0.00043835,30]
[343235393,1732516238832,-500.0,0.00043835,30]
[343235394,1732516238842,-500.0,0.00043835,30]
[343235395,1732516238851,-500.0,0.00043835,30]
[343235396,1732516238861,-500.0,0.00043835,30]
[343235397,1732516238870,-1925.25,0.00043835,30]
[343235398,1732516238880,-520.71760396,0.00043835,30]
[343235399,1732516238889,-500.0,0.00043835,30]
[343235400,1732516238898,-509.20217799,0.00043835,30]
[343235401,1732516238907,-205.03997816,0.00043835,30]
[343235402,1732516238917,-500.0,0.00043835,30]
[343235403,1732516238926,-517.7345561,0.00043835,30]
[343235404,1732516238936,-500.0,0.00043835,30]
[343235405,1732516238945,-500.0,0.00043835,30]
[343235406,1732516238954,-500.0,0.00043835,30]
[343235407,1732516238964,-510.3446318,0.00043835,30]
[343235408,1732516238973,-535.40354529,0.00043835,30]
[343235409,1732516238982,-500.0,0.00043835,30]
[343235410,1732516238992,-1192.8,0.00043835,30]
[343235411,1732516239001,-508.76480754,0.00043835,30]
[343235412,1732516239012,-500.0,0.00043835,30]
[343235413,1732516239021,-514.23746181,0.00043835,30]
[343235414,1732516239030,-500.0,0.00043835,2]
[343235415,1732516239040,-500.0,0.00043835,2]
[343235416,1732516239050,-500.0,0.00043835,2]
[343235417,1732516239059,-508.60562155,0.00043835,30]
[343235418,1732516239068,-589.70663841,0.00043835,2]
[343235419,1732516239077,-500.0,0.00043835,30]
[343235420,1732516239087,-511.60280712,0.00043835,30]
[343235421,1732516239096,-151.0,0.00043835,14]
[343235422,1732516239106,-151.0,0.00043835,14]
[343235423,1732516239115,-151.0,0.00043835,14]
[343235424,1732516239125,-151.0,0.00043835,14]
[343235425,1732516239135,-500.0,0.00043835,30]